fUSD/lending_fUSD_20250123
["ID","MTS","AMOUNT","RATE_DAILY","PERIOD"]
[350061695,1737595862651,-1471.26,0.00021643,2]
[350061696,1737595862661,-761.2,0.00021643,2]
[350061697,1737595862671,-1633.77,0.00021643,2]
[350061698,1737595862681,-583.35,0.00021643,2]
[350061699,1737595862693,-500.0,0.00021643,2]
[350061700,1737595862706,-1235.82,0.00021643,2]
[350061701,1737595862716,-1049.16,0.00021643,2]
[350061702,1737595862726,-723.31,0.00021643,2]
[350061703,1737595862736,-1125.34,0.00021643,2]
[350061704,1737595862746,-2113.23,0.00021643,2]
[350061705,1737595862759,-830.45,0.00021643,2]
[350061706,1737595862769,-1975.25,0.00021643,2]
[350061707,1737595862779,-500.0,0.00021643,2]
[350061708,1737595862791,-904.48,0.00021643,2]
[350061709,1737595862801,-777.13,0.00021643,2]
[350061710,1737595862811,-769.9,0.00021643,2]
[350061711,1737595862821,-500.0,0.00021643,2]
[350061712,1737595862831,-2992.68,0.00021643,2]
[350061713,1737595862841,-1321.75,0.00021643,2]
[350061714,1737595862851,-500.0,0.00021643,2]
[350061715,1737595862860,-500.0,0.00021643,2]
[350061716,1737595862870,-500.0,0.00021643,2]
[350061717,1737595862880,-547.14,0.00021643,2]
[350061718,1737595862889,-500.0,0.00021643,2]
[350061719,1737595862899,-500.0,0.00021643,2]
[350061720,1737595862909,-1726.46,0.00021643,2]
[350061721,1737595862919,-500.0,0.00021643,2]
[350061722,1737595862928,-2540.05,0.00021643,2]
[350061723,1737595862939,-210.0,0.0002169,2]
[350061724,1737595862950,-1046.0,0.000217,2]
[350061725,1737595862960,-4499.79543862,0.000217,2]
[350061726,1737595862970,-1000.0,0.00021731,2]
[350061727,1737595862980,-150.0,0.0002174,2]
[350061728,1737595862990,-500.0,0.00021741,2]
[350061729,1737595863000,-500.0,0.00021741,2]
[350061730,1737595863009,-500.0,0.00021741,2]
[350061731,1737595863019,-500.0,0.00021741,2]
[350061732,1737595863029,-500.0,0.00021741,2]
[350061733,1737595863039,-500.0,0.00021741,2]
[350061734,1737595863049,-500.0,0.00021741,2]
[350061735,1737595863059,-500.0,0.00021741,2]
[350061736,1737595863069,-500.0,0.00021741,2]
[350061737,1737595863079,-474.08938707,0.00021741,2]
[350061738,1737595863089,-500.0,0.00021741,2]
[350061739,1737595863099,-500.0,0.00021741,2]
[350061740,1737595863109,-500.0,0.00021741,2]
[350061741,1737595863119,-500.0,0.00021741,2]
[350061742,1737595863129,-556.2,0.00021741,2]
[350061743,1737595863139,-500.0,0.00021741,2]
[350061744,1737595863151,-576.53,0.00021741,2]
[350061745,1737595863160,-500.0,0.00021741,2]
[350061746,1737595863170,-500.0,0.00021741,2]
[350061747,1737595863179,-500.0,0.00021741,2]
[350061748,1737595863191,-500.0,0.00021741,2]
[350061749,1737595863200,-2856.19,0.00021741,2]
[350061750,1737595863209,-500.0,0.00021741,2]
[350061751,1737595863219,-500.0,0.00021741,2]
[350061752,1737595863229,-1280.53,0.00021741,2]
[350061753,1737595863239,-500.0,0.00021741,2]
[350061754,1737595863249,-252.96,0.00021741,2]
[350061755,1737595863259,-500.0,0.00021741,2]
[350061756,1737595863269,-500.0,0.00021741,2]
[350061757,1737595863278,-730.22,0.00021741,2]
[350061758,1737595863287,-500.0,0.00021741,2]
[350061759,1737595863297,-1676.92,0.00021741,2]
[350061760,1737595863307,-500.0,0.00021741,2]
[350061761,1737595863317,-500.0,0.00021741,2]
[350061762,1737595863327,-500.0,0.00021741,2]
[350061763,1737595863337,-500.0,0.00021741,2]
[350061764,1737595863347,-500.0,0.00021741,2]
[350061765,1737595863356,-575.33,0.00021741,2]
[350061766,1737595863366,-500.0,0.00021741,2]
[350061767,1737595863376,-500.0,0.00021741,2]
[350061768,1737595863386,-500.0,0.00021741,2]
[350061769,1737595863396,-500.0,0.00021741,2]
[350061770,1737595863405,-500.0,0.00021741,2]
[350061771,1737595863415,-500.0,0.00021741,2]
[350061772,1737595863425,-841.53,0.00021741,2]
[350061773,1737595863435,-500.0,0.00021741,2]
[350061774,1737595863445,-500.0,0.00021741,2]
[350061775,1737595863456,-500.0,0.00021741,2]
[350061776,1737595863465,-622.02867642,0.00021741,2]
[350061777,1737595863475,-500.0,0.00021741,2]
[350061778,1737595863485,-500.0,0.00021741,2]
[350061779,1737595863494,-150.0,0.00021745,2]
[350061780,1737595863504,-150.0,0.00021751,2]
[350061781,1737595863513,-150.0,0.00021752,2]
[350061782,1737595863523,-150.0,0.00021753,2]
[350061783,1737595863532,-9999.99,0.00021757,2]
[350061784,1737595863542,-1444.95,0.00021757,2]
[350061785,1737595863551,-3482.83,0.00021757,2]
[350061786,1737595863562,-328.37,0.00021757,2]
[350061787,1737595863571,-9999.99,0.00021757,2]
[350061788,1737595863581,-9984.92,0.00021757,2]
[350061789,1737595863591,-9999.99,0.00021757,2]
[350061790,1737595863600,-150.99,0.00021757,2]
[350061791,1737595863610,-292.34,0.00021757,2]
[350061792,1737595863619,-299.99,0.00021757,7]
[350061793,1737595863629,-465.77,0.00021757,2]
[350061794,1737595863639,-637.11,0.00021757,2]
[350061795,1737595863648,-4087.07,0.00021757,5]
[350061796,1737595863659,-55230.03,0.00021757,2]
[350061797,1737595863669,-9999.99,0.00021757,2]
[350061798,1737595863678,-1112.79,0.00021757,2]
[350061799,1737595863689,-999.99,0.00021757,2]
[350061800,1737595863699,-150.99,0.00021757,2]
[350061801,1737595863708,-150.0,0.00021757,2]
[350061802,1737595863722,-150.0,0.00021759,2]
[350061803,1737595863732,-150.0,0.00021765,2]
[350061804,1737595863741,-1000.0,0.00021769,2]
[350061805,1737595863751,-3930.211,0.00021778,2]
[350061806,1737595863762,-151.072,0.00021778,2]
[350061807,1737595863772,-1177.627,0.00021778,2]
[350061808,1737595863782,-569.343,0.00021778,2]
[350061809,1737595863792,-5470.45619032,0.0002178,2]
[350061810,1737595863802,-150.0,0.00021783,2]
[350061811,1737595863813,-150.0,0.00021788,2]
[350061812,1737595863822,-1000.0,0.00021795,2]
[350061813,1737595863832,-150.0,0.00021797,2]
[350061814,1737595863841,-1000.0,0.00021798,2]
[350061815,1737595863851,-565.18,0.000218,2]
[350061816,1737595863861,-7242.45068991,0.000218,2]
[350061817,1737595863870,-1000.0,0.000218,2]
[350061818,1737595863880,-15343.87834026,0.000218,2]
[350061819,1737595863890,-150.0,0.00021801,2]
[350061820,1737595863902,-150.0,0.00021803,2]
[350061821,1737595863912,-150.0,0.0002181,2]
[350061822,1737595863922,-150.0,0.00021814,2]
[350061823,1737595863932,-1003.24,0.00021814,2]
[350061824,1737595863944,-861.78,0.00021814,2]
[350061825,1737595863954,-1939.29,0.00021814,2]
[350061826,1737595863964,-889.88,0.00021814,2]
[350061827,1737595863974,-1279.48,0.00021814,2]
[350061828,1737595863983,-900.52,0.00021814,2]
[350061829,1737595863994,-848.51,0.00021814,2]
[350061830,1737595864004,-500.0,0.00021814,2]
[350061831,1737595864013,-1788.03,0.00021814,2]
[350061832,1737595864023,-815.53,0.00021814,2]
[350061833,1737595864033,-500.0,0.00021814,2]
[350061834,1737595864043,-1121.01,0.00021814,2]
[350061835,1737595864053,-500.0,0.00021814,2]
[350061836,1737595864063,-685.85,0.00021814,2]
[350061837,1737595864073,-500.0,0.00021814,2]
[350061838,1737595864083,-801.1,0.00021814,2]
[350061839,1737595864092,-780.8,0.00021814,2]
[350061840,1737595864103,-1007.99,0.00021814,2]
[350061841,1737595864114,-1386.99,0.00021814,2]
[350061842,1737595864123,-1342.95,0.00021814,2]
[350061843,1737595864134,-3050.06,0.00021814,2]
[350061844,1737595864144,-5460.79,0.00021814,2]
[350061845,1737595864153,-1128.69,0.00021814,2]
[350061846,1737595864163,-500.0,0.00021815,2]
[350061847,1737595864173,-197.902505,0.00021815,2]
[350061848,1737595864183,-633.68,0.00021815,2]
[350061849,1737595864194,-430.028585,0.00021815,2]
[350061850,1737595864204,-500.0,0.00021815,2]
[350061851,1737595864339,-539.85,0.00021815,2]
[350061852,1737595864361,-554.6,0.00021815,2]
[350061853,1737595864372,-500.0,0.00021815,2]
[350061854,1737595864382,-242.82834,0.00021815,2]
[350061855,1737595864392,-1222.41,0.00021815,2]
[350061856,1737595864402,-819.32,0.00021815,2]
[350061857,1737595864412,-338.083841,0.00021815,2]
[350061858,1737595864421,-1848.72,0.00021815,2]
[350061859,1737595864430,-1863.49,0.00021815,2]
[350061860,1737595864441,-254.214363,0.00021815,2]
[350061861,1737595864451,-841.18,0.00021815,2]
[350061862,1737595864460,-2266.54,0.00021815,2]
[350061863,1737595864470,-150.182658,0.00021815,2]
[350061864,1737595864479,-161.583491,0.00021815,2]
[350061865,1737595864490,-1227.73,0.00021815,2]
[350061866,1737595864501,-193.265101,0.00021815,2]
[350061867,1737595864511,-1452.85,0.00021815,2]
[350061868,1737595864522,-2444.01,0.00021815,2]
[350061869,1737595864533,-1211.32,0.00021815,2]
[350061870,1737595864543,-150.0,0.00021816,2]
[350061871,1737595864554,-150.0,0.00021817,2]
[350061872,1737595864564,-150.0,0.00021819,2]
[350061873,1737595864573,-150.0,0.00021822,2]
[350061874,1737595864582,-500.0,0.00021823,2]
[350061875,1737595864591,-500.0,0.00021824,2]
[350061876,1737595864600,-150.0,0.00021825,2]
[350061877,1737595864608,-150.0,0.00021827,2]
[350061878,1737595864617,-150.0,0.00021829,2]
[350061879,1737595864626,-150.0,0.00021833,2]
[350061880,1737595864636,-150.0,0.00021838,2]
[350061881,1737595864645,-150.0,0.00021838,2]
[350061882,1737595864654,-1000.0,0.0002184,2]
[350061883,1737595864664,-150.0,0.00021847,2]
[350061884,1737595864673,-150.0,0.00021848,2]
[350061885,1737595864682,-201.07,0.00021852,2]
[350061886,1737595864694,-150.0,0.00021852,2]
[350061887,1737595864704,-150.0,0.00021856,2]
[350061888,1737595864715,-418.96053311,0.00021859,2]
[350061889,1737595864725,-150.0,0.00021861,2]
[350061890,1737595864735,-150.0,0.00021862,2]
[350061891,1737595864747,-150.0,0.00021864,2]
[350061892,1737595864756,-1921.0,0.00021867,2]
[350061893,1737595864766,-3999.999999,0.00021874,3]
[350061894,1737595864775,-150.0,0.00021874,2]
[350061895,1737595864785,-150.0,0.00021875,2]
[350061896,1737595864794,-150.0,0.00021876,2]
[350061897,1737595864805,-150.0,0.00021881,2]
[350061898,1737595864813,-5800.0,0.00021881,2]
[350061899,1737595864822,-1000.0,0.00021882,2]
[350061900,1737595864831,-150.0,0.00021885,2]
[350061901,1737595864840,-5800.0,0.00021889,2]
[350061902,1737595864850,-2000.0,0.0002189,2]
[350061903,1737595864859,-150.0,0.00021893,2]
[350061904,1737595864868,-150.0,0.00021894,2]
[350061905,1737595864878,-150.0,0.00021896,2]
[350061906,1737595864888,-5800.0,0.00021898,2]
[350061907,1737595864898,-1446.91,0.000219,2]
[350061908,1737595864908,-1000.0,0.000219,2]
[350061909,1737595864918,-9805.44848009,0.000219,4]
[350061910,1737595864927,-214.1642847,0.000219,2]
[350061911,1737595864939,-150.35633648,0.000219,2]
[350061912,1737595864948,-150.35633637,0.000219,2]
[350061913,1737595864958,-150.35633637,0.000219,2]
[350061914,1737595864967,-150.35633637,0.000219,2]
[350061915,1737595864977,-150.35633637,0.000219,2]
[350061916,1737595864986,-150.35633637,0.000219,2]
[350061917,1737595864996,-150.35633637,0.000219,2]
[350061918,1737595865006,-372.7359666,0.000219,3]
[350061919,1737595865016,-150.35633637,0.000219,2]
[350061920,1737595865025,-150.35633637,0.000219,2]
[350061921,1737595865034,-150.35633637,0.000219,2]
[350061922,1737595865044,-150.35633637,0.000219,2]
[350061923,1737595865053,-150.35633637,0.000219,2]
[350061924,1737595865064,-150.35633637,0.000219,2]
[350061925,1737595865074,-150.35633637,0.000219,2]
[350061926,1737595865083,-150.35633637,0.000219,2]
[350061927,1737595865092,-150.35633637,0.000219,2]
[350061928,1737595865101,-150.0,0.00021906,2]
[350061929,1737595865111,-150.0,0.00021912,2]
[350061930,1737595865121,-566.76,0.00021915,2]
[350061931,1737595865130,-907.78,0.00021915,2]
[350061932,1737595865143,-500.0,0.00021915,2]
[350061933,1737595865155,-526.91,0.00021915,2]
[350061934,1737595865165,-1287.76,0.00021915,2]
[350061935,1737595865175,-980.19,0.00021915,2]
[350061936,1737595865184,-500.0,0.00021915,2]
[350061937,1737595865195,-2385.14,0.00021915,2]
[350061938,1737595865204,-721.45,0.00021915,2]
[350061939,1737595865214,-500.0,0.00021915,2]
[350061940,1737595865223,-1113.17,0.00021915,2]
[350061941,1737595865233,-821.18,0.00021915,2]
[350061942,1737595865246,-832.11,0.00021915,2]
[350061943,1737595865255,-500.0,0.00021916,2]
[350061944,1737595865265,-500.0,0.00021916,2]
[350061945,1737595865275,-500.0,0.00021916,2]
[350061946,1737595865284,-500.0,0.00021916,2]
[350061947,1737595865293,-618.38,0.00021916,2]
[350061948,1737595865302,-500.0,0.00021916,2]
[350061949,1737595865311,-500.0,0.00021916,2]
[350061950,1737595865321,-500.0,0.00021916,2]
[350061951,1737595865330,-808.71,0.00021916,2]
[350061952,1737595865340,-500.0,0.00021916,2]
[350061953,1737595865349,-706.8,0.00021916,2]
[350061954,1737595865358,-951.84,0.00021916,2]
[350061955,1737595865369,-878.88,0.00021916,2]
[350061956,1737595865379,-500.0,0.00021916,2]
[350061957,1737595865400,-1522.12,0.00021916,2]
[350061958,1737595865409,-1602.72,0.00021916,2]
[350061959,1737595865419,-500.0,0.00021916,2]
[350061960,1737595865428,-500.0,0.00021916,2]
[350061961,1737595865438,-500.0,0.00021916,2]
[350061962,1737595865448,-500.0,0.00021916,2]
[350061963,1737595865457,-500.0,0.00021916,2]
[350061964,1737595865469,-500.0,0.00021916,2]
[350061965,1737595865480,-500.0,0.00021917,2]
[350061966,1737595865491,-500.0,0.00021917,2]
[350061967,1737595865501,-500.0,0.00021917,2]
[350061968,1737595865512,-500.0,0.00021917,2]
[350061969,1737595865522,-381.92985548,0.00021917,2]
[350061970,1737595865533,-500.0,0.00021917,3]
[350061971,1737595865543,-500.0,0.00021917,3]
[350061972,1737595865553,-500.0,0.00021917,2]
[350061973,1737595865564,-500.0,0.00021917,2]
[350061974,1737595865575,-500.0,0.00021917,2]
[350061975,1737595865584,-500.0,0.00021917,2]
[350061976,1737595865594,-500.0,0.00021917,2]
[350061977,1737595865604,-595.61096697,0.00021917,2]
[350061978,1737595865614,-1471.26,0.00021917,2]
[350061979,1737595865625,-761.2,0.00021917,2]
[350061980,1737595865635,-1633.77,0.00021917,2]
[350061981,1737595865645,-583.35,0.00021917,2]
[350061982,1737595865656,-500.0,0.00021917,2]
[350061983,1737595865666,-1235.82,0.00021917,2]
[350061984,1737595865675,-1049.16,0.00021917,2]
[350061985,1737595865684,-723.31,0.00021917,2]
[350061986,1737595865695,-1125.34,0.00021917,2]
[350061987,1737595865706,-2113.23,0.00021917,2]
[350061988,1737595865716,-830.45,0.00021917,2]
[350061989,1737595865726,-1975.25,0.00021917,2]
[350061990,1737595865736,-904.48,0.00021917,2]
[350061991,1737595865747,-777.13,0.00021917,2]
[350061992,1737595865757,-769.9,0.00021917,2]
[350061993,1737595865766,-500.0,0.00021917,2]
[350061994,1737595865777,-2992.68,0.00021917,2]
[350061995,1737595865787,-1321.75,0.00021917,2]
[350061996,1737595865800,-500.0,0.00021917,2]
[350061997,1737595865809,-500.0,0.00021917,2]
[350061998,1737595865819,-500.0,0.00021917,2]
[350061999,1737595865828,-547.14,0.00021917,2]
[350062000,1737595865837,-500.0,0.00021917,2]
[350062001,1737595865847,-500.0,0.00021917,2]
[350062002,1737595865856,-1726.46,0.00021917,2]
[350062003,1737595865866,-511.35999075,0.00021917,2]
[350062004,1737595865876,-2540.05,0.00021917,2]
[350062005,1737595865885,-150.0,0.00021918,2]
[350062006,1737595865895,-150.0,0.00021925,2]
[350062007,1737595865905,-150.0,0.00021927,2]
[350062008,1737595865914,-150.0,0.00021937,2]
[350062009,1737595865924,-150.0,0.00021939,2]
[350062010,1737595865934,-150.0,0.00021941,2]
[350062011,1737595865945,-150.0,0.00021948,2]
[350062012,1737595865954,-150.0,0.00021951,2]
[350062013,1737595865964,-150.0,0.00021952,2]
[350062014,1737595865974,-151.90782398,0.00021956,2]
[350062015,1737595865984,-150.0,0.00021957,2]
[350062016,1737595865993,-311.63163877,0.00021973,4]
[350062017,1737595866002,-150.0,0.00021973,4]
[350062018,1737595866011,-163.0137791,0.00021973,4]
[350062019,1737595866021,-151.12745304,0.00021973,4]
[350062020,1737595866031,-150.0,0.00021973,4]
[350062021,1737595866040,-311.63163877,0.00021977,4]
[350062022,1737595866050,-163.0137791,0.00021977,4]
[350062023,1737595866059,-150.0,0.00021978,2]
[350062024,1737595866069,-150.0,0.0002198,4]
[350062025,1737595866080,-311.63163877,0.00021981,4]
[350062026,1737595866090,-163.0137791,0.00021981,4]
[350062027,1737595866100,-150.0,0.00021981,2]
[350062028,1737595866110,-150.0,0.00021985,2]
[350062029,1737595866119,-150.0,0.00021985,2]
[350062030,1737595866128,-311.63163877,0.00021985,4]
[350062031,1737595866137,-163.0137791,0.00021985,4]
[350062032,1737595866147,-150.0,0.00021987,4]
[350062033,1737595866156,-311.63163877,0.00021989,4]
[350062034,1737595866166,-163.0137791,0.00021989,4]
[350062035,1737595866175,-2000.0,0.0002199,2]
[350062036,1737595866186,-150.0,0.00021991,2]
[350062037,1737595866197,-150.0,0.00021993,4]
[350062038,1737595866207,-311.63163877,0.00021993,4]
[350062039,1737595866216,-163.0137791,0.00021993,4]
[350062040,1737595866224,-150.0,0.00021994,4]
[350062041,1737595866233,-4895.79987028,0.00021997,2]
[350062042,1737595866242,-311.63163877,0.00021998,4]
[350062043,1737595866252,-163.0137791,0.00021998,4]
[350062044,1737595866261,-1000.0,0.00021999,2]
[350062045,1737595866270,-816.07,0.00021999,2]
[350062046,1737595866281,-500.0,0.00021999,2]
[350062047,1737595866290,-271.0,0.00021999,2]
[350062048,1737595866300,-500.0,0.00021999,2]
[350062049,1737595866309,-500.0,0.00021999,2]
[350062050,1737595866319,-222.3084069,0.00021999,7]
[350062051,1737595866329,-3496688.8910345,0.00022,2]
[350062052,1737595866507,-72734.91766491,0.00022,2]
[350062053,1737595866518,-746741.62135113,0.00022,2]
[350062054,1737595866530,-284752.49845694,0.00022,2]
[350062055,1737595866694,-500.0,0.00020273,2]
[350062056,1737595866704,-755.57,0.00021643,2]
[350062057,1737595866715,-5340.46655,0.00022,2]
[350062058,1737595866727,-331637.86476879,0.00022,2]
[350062059,1737595866766,-923343.67691726,0.00022,2]
[350062060,1737595866777,-4789.42931345,0.00022,2]
[350062061,1737595866788,-16163.41879884,0.00022,2]
[350062062,1737595866801,-203000.00000002,0.00022,2]
[350062063,1737595866813,-950.59054867,0.00022,2]
[350062064,1737595866836,-500.0,0.00020097,2]
[350062065,1737595866846,-755.57,0.00021917,2]
[350062066,1737595866855,-12748.36217648,0.00022,2]
[350062067,1737595867226,-534.07068822,0.00011956,2]
[350062068,1737595867277,-650.39699997,0.00011956,2]
[350062069,1737595867288,-650.341599,0.00011956,2]
[350062070,1737595867299,-7260.927576,0.00011956,2]
[350062071,1737595868102,-13665.69354885,0.00011956,2]
[350062072,1737595868112,-304.41656298,0.00016928,2]
[350062073,1737595868122,-500.0,0.00019178,2]
[350062074,1737595868132,-501.71215909,0.00019178,2]
[350062075,1737595868142,-500.0,0.00019178,2]
[350062076,1737595868151,-583.79800848,0.00019178,2]
[350062077,1737595868161,-504.58530974,0.00019178,2]
[350062078,1737595868171,-500.0,0.00019178,2]
[350062079,1737595868180,-178.809814,0.00019178,2]
[350062080,1737595868190,-500.0,0.00019178,2]
[350062081,1737595868200,-500.0,0.00019452,2]
[350062082,1737595868209,-500.0,0.00019452,2]
[350062083,1737595868218,-500.0,0.00019452,2]
[350062084,1737595868227,-500.0,0.00019726,2]
[350062085,1737595868237,-500.0,0.00019726,2]
[350062086,1737595868247,-500.0,0.00019726,2]
[350062087,1737595868257,-500.0,0.00019823,2]
[350062088,1737595868266,-500.0,0.00019823,2]
[350062089,1737595868277,-692.36,0.00019896,2]
[350062090,1737595868286,-1165.57,0.00019897,2]
[350062091,1737595868295,-515.09664313,0.00019997,2]
[350062092,1737595868304,-500.0,0.00019997,2]
[350062093,1737595868314,-500.0,0.00019998,2]
[350062094,1737595868325,-500.0,0.00019998,2]
[350062095,1737595868336,-500.0,0.00019998,2]
[350062096,1737595868346,-500.0,0.0002,2]
[350062097,1737595868355,-500.0,0.0002,2]
[350062098,1737595868365,-500.0,0.0002,2]
[350062099,1737595868377,-500.0,0.00020097,2]
[350062100,1737595868386,-500.0,0.00020097,2]
[350062101,1737595868395,-692.36,0.0002017,2]
[350062102,1737595868404,-1165.57,0.00020171,2]
[350062103,1737595868413,-500.0,0.00020271,2]
[350062104,1737595868423,-500.0,0.00020272,2]
[350062105,1737595868432,-506.80838484,0.00020272,2]
[350062106,1737595868442,-500.0,0.00020272,2]
[350062107,1737595868451,-500.0,0.00020273,2]
[350062108,1737595868461,-500.0,0.00020273,2]
[350062109,1737595868471,-500.0,0.00020371,2]
[350062110,1737595868480,-500.0,0.00020371,2]
[350062111,1737595868490,-500.0,0.00020371,2]
[350062112,1737595868499,-692.36,0.00020444,2]
[350062113,1737595868509,-1165.57,0.00020445,2]
[350062114,1737595868518,-500.0,0.00020545,2]
[350062115,1737595868528,-500.0,0.00020546,2]
[350062116,1737595868538,-500.0,0.00020546,2]
[350062117,1737595868548,-500.0,0.00020547,2]
[350062118,1737595868557,-500.0,0.00020547,2]
[350062119,1737595868567,-500.0,0.00020547,2]
[350062120,1737595868576,-500.0,0.00020645,2]
[350062121,1737595868585,-500.0,0.00020645,2]
[350062122,1737595868595,-500.0,0.00020645,2]
[350062123,1737595868604,-692.36,0.00020718,2]
[350062124,1737595868614,-1165.57,0.00020719,2]
[350062125,1737595868623,-500.0,0.00020819,2]
[350062126,1737595868632,-500.0,0.0002082,2]
[350062127,1737595868641,-508.57603065,0.0002082,2]
[350062128,1737595868651,-500.0,0.00020821,2]
[350062129,1737595868660,-500.0,0.00020821,2]
[350062130,1737595868669,-500.0,0.00020821,2]
[350062131,1737595868679,-500.0,0.00020919,2]
[350062132,1737595868688,-500.0,0.00020919,2]
[350062133,1737595868698,-500.0,0.00020919,2]
[350062134,1737595868712,-692.36,0.00020992,2]
[350062135,1737595868722,-1165.57,0.00020993,2]
[350062136,1737595868842,-500.0,0.00021094,2]
[350062137,1737595868852,-500.0,0.00021095,2]
[350062138,1737595868862,-500.0,0.00021095,2]
[350062139,1737595868872,-500.0,0.00021095,2]
[350062140,1737595868881,-500.0,0.00021193,2]
[350062141,1737595868890,-500.0,0.00021193,2]
[350062142,1737595868900,-511.89767416,0.00021193,2]
[350062143,1737595868910,-692.36,0.00021266,2]
[350062144,1737595868920,-1165.57,0.00021267,2]
[350062145,1737595868930,-517.21206411,0.00021368,2]
[350062146,1737595868941,-500.0,0.00021369,2]
[350062147,1737595868950,-500.0,0.00021369,2]
[350062148,1737595868960,-500.0,0.00021369,2]
[350062149,1737595868969,-500.0,0.00021467,2]
[350062150,1737595868979,-500.0,0.00021467,2]
[350062151,1737595868988,-692.36,0.0002154,2]
[350062152,1737595868998,-1165.57,0.00021541,2]
[350062153,1737595869007,-500.0,0.00021643,2]
[350062154,1737595869017,-500.0,0.00021643,2]
[350062155,1737595869026,-500.0,0.00021643,2]
[350062156,1737595869036,-500.0,0.00021741,2]
[350062157,1737595869046,-500.0,0.00021741,2]
[350062158,1737595869055,-692.36,0.00021814,2]
[350062159,1737595869065,-1165.57,0.00021815,2]
[350062160,1737595869074,-304.41656298,0.000219,2]
[350062161,1737595869084,-500.0,0.00021917,2]
[350062162,1737595869094,-500.0,0.00021917,2]
[350062163,1737595869103,-500.0,0.00021917,2]
[350062164,1737595869112,-88026.2702349,0.00022,2]
[350062165,1737595869129,-20340.6,0.00022,2]
[350062166,1737595869180,-500.0,0.00019178,2]
[350062167,1737595869191,-174.65043734,0.00019178,2]
[350062168,1737595869200,-500.0,0.00019452,2]
[350062169,1737595869209,-500.0,0.00020273,2]
[350062170,1737595869220,-178.809814,0.00020821,2]
[350062171,1737595869229,-500.0,0.00021093,2]
[350062172,1737595869239,-2466.16786724,0.00022,2]
[350062173,1737595869252,-398.4010004,0.00022,2]
[350062174,1737595869265,-155062.67724482,0.00022,2]
[350062175,1737595869292,-500.0,0.00019726,2]
[350062176,1737595869303,-500.0,0.00020547,2]
[350062177,1737595869313,-500.0,0.00021367,2]
[350062178,1737595869324,-8537.08789959,0.00022,2]
[350062179,1737595869336,-11010.3841377,0.00022,2]
[350062180,1737595869357,-389.49412691,0.00019452,2]
[350062181,1737595925887,933.5732522,0.0002,60]
[350062182,1737596246671,199.3975994,0.00022004,120]
[350062183,1737596344992,1688.0,0.00022,120]
[350062185,1737596522797,204.76,0.00022,120]
[350062186,1737596555024,150.01231,0.00022,120]
[350062187,1737596556875,150.01231,0.00022,120]
[350062188,1737596557595,150.01231,0.00022,120]
[350062189,1737596558191,150.01231,0.00022,120]
[350062190,1737596558894,150.01231,0.00022,120]
[350062191,1737596559467,150.01231,0.00022,120]
[350062192,1737596560069,150.01231,0.00022,120]
[350062193,1737596560694,150.01231,0.00022,120]
[350062195,1737596561385,150.01231,0.00022,120]
[350062196,1737596561995,150.01231,0.00022,120]